Cogmind - Beta 11 @@@ ROGUE MODE // 2022.03.27 @ 13:09:18 Player: Someone64 Result: Self-destructed Performance ------------- Evolutions (2) 1000 Regions Visited (3) 600 Robots Destroyed (8) 40 Value Destroyed (70) 70 Prototype IDs (0) 0 Alien Tech Used (0) 0 Bonus (0) 0 TOTAL SCORE: 1710 Bonus ------- None Cogmind --------- Core Integrity 175/550 Matter 290/300 Energy 72/100 System Corruption 0% Temperature Warm (108) Movement Core (100) Ox1 Location -8/Materials Parts ------- > --- POWER (2) -------- (None) > --- PROPULSION (4) --- (None) > --- UTILITY (3) ------ (None) > --- WEAPON (2) ------- Heavy Particle Cannon > --- INVENTORY (5) ---- Small Laser Spread Laser Beam Cannon Grenade Launcher Peak State ------------ > --- POWER ------------ Light Ion Engine Light Deuterium Engine > --- PROPULSION ------- Flight Unit Flight Unit > --- UTILITY ---------- Improved Terrain Scanner Seismic Detector > --- WEAPON ----------- Spread Laser > --- INVENTORY -------- Light Ion Engine High-capacity Battery Small Laser Beam Cannon Grenade Launcher [Rating: 12] Favorites ----------- Power Light Ion Engine Engine Light Ion Engine Propulsion Flight Unit Leg Aluminum Leg Wheel Wheel Flight Unit Flight Unit Utility Seismic Detector Device Seismic Detector Storage Small Storage Unit Weapon Small Laser Energy Gun Small Laser Energy Cannon Heavy Particle Cannon Build | -11 -10 -9 -8 ------- Run | Scr Mat Mat Mat Slots Evolved 4 | . . 2 2 Power 1 | . . . 1 Propulsion 2 | . . 1 1 Utility 1 | . . 1 . Weapon . | . . . . Parts Attached 18 | 7 6 3 2 Power 3 | 1 1 . 1 Engine 3 | 1 1 . 1 Core . | . . . . Reactor . | . . . . Propulsion 6 | 2 4 . . Treads . | . . . . Leg 2 | 2 . . . Wheel 2 | . 2 . . Hover . | . . . . Flight 2 | . 2 . . Utility 4 | 2 1 1 . Device 2 | 1 1 . . Storage 2 | 1 . 1 . Processor . | . . . . Hackware . | . . . . Protection . | . . . . Artifact . | . . . . Weapon 5 | 2 . 2 1 Energy Gun 4 | 2 . 2 . Energy Cannon 1 | . . . 1 Ballistic Gun . | . . . . Ballistic Cannon . | . . . . Launcher . | . . . . Special Weapon . | . . . . Impact Weapon . | . . . . Slashing Weapon . | . . . . Piercing Weapon . | . . . . Special Melee Weapon . | . . . . Unidentified Prototypes . | . . . . Parts Lost 2 | . . . 2 Power . | . . . . Propulsion 1 | . . . 1 Utility 1 | . . . 1 Weapon . | . . . . Highest Loss Streak 2 | . . . 2 To Critical Strikes . | . . . . Average Slot Usage (%) 66 | . 98 74 18 Engine 9 | . 14 11 2 Wheel 5 | . 14 . . Flight 13 | . 13 22 5 Device 16 | . 19 22 5 Storage 2 | . 7 . . Energy Gun 17 | . 28 19 2 Naked Turns 65 | . . . 65 Heaviest Build 13 | 13 13 8 8 Greatest Support 26 | 20 26 8 8 Greatest Overweight (x) 3 | . 3 . 1 Average Overweight (x) . | . . . . Largest Inventory Capacity 8 | 8 8 5 5 Average Capacity 6 | 7 6 5 5 Most Carried 8 | 8 8 5 5 Average Carried 4 | 4 6 4 4 Final Capacity 8 | 8 5 5 5 Final Carried 7 | 7 4 5 4 Class Distribution -------------------- 51% | Mutant 48% | Scavenger-Mutant Dominant Class ---------------- Scavenger-Mutant | -10/Materials Scavenger-Mutant | -9/Materials Mutant | -8/Materials Resources | -11 -10 -9 -8 ----------- Run | Scr Mat Mat Mat Matter Collected 360 | 270 60 10 20 Remotely . | . . . . Salvage Created 239 | 88 42 56 53 Parts 17 | 5 5 3 4 Haulers Intercepted 2 | . . 1 1 Recyclers Shooed . | . . . . Parts Field Recycled . | . . . . Retrieved Matter . | . . . . Parts Self-Destructed . | . . . . Prevented . | . . . . Kills | -11 -10 -9 -8 ------- Run | Scr Mat Mat Mat Combat Hostiles Destroyed 2 | . 2 . . Guns 2 | . 2 . . Classes Destroyed 5 | 2 2 1 . Tunneler 2 | 1 . . 1 Hauler 2 | . . 1 1 Recycler 1 | 1 . . . Operator 1 | . 1 . . Swarmer 2 | . 2 . . Best Kill Streak 2 | 1 2 1 2 Combat Bots Only 2 | . 2 . . Max Kills in Single Turn 1 | 1 1 1 1 Gunslinging . | . . . . Exploded . | . . . . Melee . | . . . . Uniques/NPCs Destroyed . | . . . . Combat | -11 -10 -9 -8 -------- Run | Scr Mat Mat Mat Damage Taken 593 | . . 79 514 Core 427 | . . 52 375 Absorbed by Shields . | . . . . Core Remaining (%) 95 | 100 100 87 . Volleys Fired 27 | 8 6 5 8 Largest 2 | 2 2 2 1 Hottest 80 | 80 80 80 75 Shots Fired 46 | 16 12 10 8 Gun 42 | 16 12 10 4 Cannon 4 | . . . 4 Launcher . | . . . . Special . | . . . . Kinetic . | . . . . Thermal 46 | 16 12 10 8 Explosive . | . . . . Electromagnetic . | . . . . Robot Hit Streak 8 | 4 5 8 4 Robot Miss Streak 5 | 2 2 4 5 Penetration Max . | . . . . Secondary Targets . | . . . . Shots Hit Robots 27 | 10 7 5 5 Core Hits 18 | 3 4 3 8 Critical Kills . | . . . . Critical Parts Destroyed . | . . . . Critical Strikes . | . . . . Melee Attacks . | . . . . Impact . | . . . . Slashing . | . . . . Piercing . | . . . . Sneak Attacks . | . . . . Combat Hostiles . | . . . . Follow-up Attacks . | . . . . Damage Inflicted 337 | 109 80 53 95 Guns 312 | 109 80 53 70 Cannons 25 | . . . 25 Explosions . | . . . . Melee . | . . . . Ramming . | . . . . Kinetic . | . . . . Thermal 337 | 109 80 53 95 Explosive . | . . . . Electromagnetic . | . . . . Impact . | . . . . Slashing . | . . . . Piercing . | . . . . Highest Corruption . | . . . . Average Corruption . | . . . . Corruption Purged . | . . . . Corruption Blocked . | . . . . Overload Shots . | . . . . Overflow Damage . | . . . . Projectiles . | . . . . Explosions . | . . . . Melee . | . . . . Knockbacks . | . . . . Impact . | . . . . Kinetic . | . . . . Secondary . | . . . . Self-Inflicted Damage . | . . . . Shots . | . . . . Rammed . | . . . . Targets Rammed . | . . . . Kicked . | . . . . Crushed . | . . . . Highest Temperature 99 | 54 60 32 99 Average Temperature 26 | 21 28 16 37 Received Heat Transfer 360 | . . 36 324 Siege Activations . | . . . . Robots Corrupted . | . . . . Combat Hostiles . | . . . . Parts Fried . | . . . . Impact Corruptions . | . . . . Robots Melted . | . . . . Combat Hostiles . | . . . . Parts Melted . | . . . . Heat Transferred 672 | 250 175 125 122 Parts Sabotaged . | . . . . Parts Stolen . | . . . . Parts Stripped . | . . . . Power Chain Reactions . | . . . . Missiles Intercepted . | . . . . Alert | -11 -10 -9 -8 ------- Run | Scr Mat Mat Mat Peak Influence 226 | 10 76 128 226 Initial 53 | . 6 31 53 Average 46 | 4 45 55 95 Maximum Alert Level 1 | . . . 1 Low Security (%) 98 | 100 100 100 91 Level 1 1 | . . . 8 Level 2 . | . . . . Level 3 . | . . . . Level 4 . | . . . . Level 5 . | . . . . High Security . | . . . . Max Security . | . . . . Squads Dispatched 5 | . . 1 4 Investigation 3 | . . 1 2 Extermination . | . . . . Reinforcement 2 | . . . 2 Assault . | . . . . Garrison . | . . . . Intercept . | . . . . Searches Triggered . | . . . . Construction Impeded . | . . . . Haulers Reinforced . | . . . . Active Scanning Responses . | . . . . Cargo Convoy Interrupts . | . . . . Stealth | -11 -10 -9 -8 --------- Run | Scr Mat Mat Mat Distress Signals 3 | . 2 1 . Communications Jammed . | . . . . Distress Signals . | . . . . Times Spotted 38 | . 5 14 19 Peak Tracking Total 13 | . 3 11 13 Tactical Retreats 4 | . 1 . 3 Traps | -11 -10 -9 -8 ------- Run | Scr Mat Mat Mat Traps Triggered 2 | . . . 2 Indirectly . | . . . . Trap Hack Attempts . | . . . . Triggered . | . . . . Disarmed . | . . . . Reprogrammed . | . . . . Reused . | . . . . Traps Extracted . | . . . . Installed . | . . . . Triggered . | . . . . Machines | -11 -10 -9 -8 ---------- Run | Scr Mat Mat Mat Machines Disabled 1 | . . . 1 Max in Single Turn 1 | . . . 1 Machines Sabotaged . | . . . . Garrisons Compromised . | . . . . Overloaded Fab Kills . | . . . . Hacking | -11 -10 -9 -8 --------- Run | Scr Mat Mat Mat Machines Accessed 3 | . 1 2 . Terminals 3 | . 1 2 . Fabricators . | . . . . Repair Stations . | . . . . Recycling Units . | . . . . Scanalyzers . | . . . . Garrison Access . | . . . . Total Hacks 7 | . 3 4 . Successful 3 | . 2 1 . Failed 4 | . 1 3 . Catastrophic 2 | . 1 1 . Database Lockouts . | . . . . Manual 3 | . 2 1 . Terminals 7 | . 3 4 . Fabricators . | . . . . Repair Stations . | . . . . Recycling Units . | . . . . Scanalyzers . | . . . . Garrison Access . | . . . . Terminal Hacks 2 | . 1 1 . Record 1 | . . 1 . Branch Access Points 1 | . 1 . . Fabricator Hacks . | . . . . Repair Station Hacks . | . . . . Recycling Unit Hacks . | . . . . Scanalyzer . | . . . . Garrison Access Hacks . | . . . . Unauthorized Hacks 1 | . 1 . . Terminals 1 | . 1 . . Track 1 | . 1 . . Fabricators . | . . . . Repair Stations . | . . . . Recycling Units . | . . . . Scanalyzers . | . . . . Garrison Access . | . . . . Data Cores Recovered 1 | . 1 . . Used . | . . . . Hacking Detections 3 | . 1 2 . Full Trace Events 2 | . . 2 . Feedback Events . | . . . . Feedback Blocked . | . . . . Robot Schematics Acquired . | . . . . Robots Built . | . . . . Authchips . | . . . . Time . | . . . . Total Robot Build Rating . | . . . . Part Schematics Acquired . | . . . . Parts Built . | . . . . Authchips . | . . . . Time . | . . . . Total Part Build Rating . | . . . . Parts Repaired . | . . . . Time . | . . . . Parts Recycled . | . . . . Recycled Matter . | . . . . Retrieved Matter . | . . . . Retrieved Components . | . . . . Parts Scanalyzed . | . . . . Part Schematics Acquired . | . . . . Parts Damaged . | . . . . Bothacking | -11 -10 -9 -8 ------------ Run | Scr Mat Mat Mat Used RIF Installer . | . . . . Robots Hacked . | . . . . Non-combat . | . . . . Combat . | . . . . Robot Hacks Applied . | . . . . Relay Couplers Released . | . . . . Fabnet Peak Effective % . | . . . . Robots Rewired . | . . . . Allies Hacked . | . . . . Hacks Repelled . | . . . . Allies | -11 -10 -9 -8 -------- Run | Scr Mat Mat Mat Total Allies . | . . . . Largest Group . | . . . . Highest-Rated Group . | . . . . Highest-Rated Ally . | . . . . Total Orders . | . . . . Ally Attacks . | . . . . Total Damage . | . . . . Kills . | . . . . Allies Corrupted . | . . . . Allies Melted . | . . . . Intel | -11 -10 -9 -8 ------- Run | Scr Mat Mat Mat Robot Analysis Total . | . . . . Derelict Logs Recovered . | . . . . Drone Launches . | . . . . Drone Recoveries . | . . . . Exploration | -11 -10 -9 -8 ------------- Run | Scr Mat Mat Mat Turns Passed 612 | 171 158 154 129 Spaces Moved 776 | 107 198 249 222 Core 143 | 6 . . 137 Treads . | . . . . Legs 101 | 101 . . . Wheels 69 | . 69 . . Hover . | . . . . Flight 463 | . 129 249 85 Fastest Speed 37 | 50 37 37 37 Average Speed 56 | 116 59 37 46 Slowest Speed 280 | 120 280 37 100 Overloaded Moves . | . . . . Propulsion Burnouts . | . . . . Robots Hopped 2 | . . 2 . Cave-ins Triggered . | . . . . Exploration Rate (%) 26 | 6 45 24 29 Regions Visited 3 Branch Regions . Pre-discovered Areas . | . . . . Known Exits Taken . | . . . . Unknown Exits Taken 3 | 1 1 1 . Scrap Searched . | . . . . Spaces Dug . | . . . . Terrain Destroyed 1 | . . . 1 Melee . | . . . . Projectile 1 | . . . 1 AOE . | . . . . Terrain Rammed . | . . . . Walls Destroyed . | . . . . Machines Disabled . | . . . . Actions | -11 -10 -9 -8 --------- Run | Scr Mat Mat Mat Total 903 | 135 229 299 240 Wait 53 | 6 2 41 4 Move 770 | 106 197 245 222 Hop 1 | . . 1 . Pick Up 14 | 8 6 . . Fast Attach 12 | 6 2 2 2 Attach 4 | 1 2 1 . Detach 4 | . 1 2 1 Swap 2 | . 2 . . Drop 16 | . 11 2 3 Fire 27 | 8 6 5 8 Melee . | . . . . Ram . | . . . . Kick . | . . . . Crush . | . . . . Escape Stasis . | . . . . Rewire . | . . . . Trap . | . . . . Miscellaneous . | . . . . Route ------- -11/Scrapyard -10/Materials (discovered 2 exits: *Mat / Min) -9/Materials -8/Materials History --------- Turn | Location | Event 20 | -11/Scrapyard | Discovered new exit (range 15) 172 | -11/Scrapyard | Entered Materials 273 | -10/Materials | Identified exit to Mines 326 | -10/Materials | Discovered new exit (range 10) 330 | -10/Materials | Entered another Materials area 330 | -9/Materials | Evolved 2 slots: Propulsion x1, Utility x1 482 | -9/Materials | Discovered new exit (range 6) 484 | -9/Materials | Entered another Materials area 484 | -8/Materials | Evolved 2 slots: Power x1, Propulsion x1 529 | -8/Materials | Released all parts (3) 576 | -8/Materials | Core integrity fell below 50% 613 | -8/Materials | Self-destructed Last Messages --------------- 00529_ U-05 Engineer lays Concrete. 00529_ Imp. Terrain Scanner destroyed. 00529_ U-05 Engineer lays Concrete. 00529_ R-06 Scavenger collects Prototype Ballistic Gun. 00529_ Flight Unit destroyed. 00529_ Critical hit (Burn: +37). 00529_ Released Flight Unit. 00529_ Released Seismic Detector. 00529_ Released Lgt. Deuterium Engine. 00530_ U-05 Engineer lays Concrete. 00531_ Triggered Alarm Trap. 00531_ An alarm sounds. 00531_ ALERT: Alarm triggered, dispatching investigation squad. 00532_ U-05 Engineer lays Concrete. 00554_ K-01 Serf collects debris. 00562_ A-02 Transporter suffers critical hit (Burn). 00572_ ALERT: Hostiles spotted, dispatching reinforcements to Terminal M004. 00589_ K-01 Serf collects debris. 00594_ Acquired Hvy. Particle Cannon. 00607_ Atomic Centrifuge disabled. Map ----- +----------------------------------------------------+ | | | | | | | | | | | | | | | ?????????????????????????????????????????????????? | | ?????????????????????????????????????????????????? | | ?????????????????????????????????????????????????? | | ?????????????????????????????????????????????????? | | ?????????????????????????????????????????????????? | | ?????????????????????????????????????????????????? | | ?????????????????????????????????????????????????? | | ?????????????????????????????????????????????????? | | ?????????????????????????????????????????????????? | | ????????????????????????##########???????????????? | | ????????????????????????# #???????????????? | | ????????????????????????# """ #???????????????? | | ??????????????????####### """ #???????????????? | | ??????????????????# #g""" !#???????????????? | | ??????????????????# # g #???????????????? | | ??????????????????# g """ #???????????????? | | ??????????????????# g "" #???????????????? | | ??????????????????# #gg"" #???????????????? | | ??????????????????## ##@ #???????????????? | | ???????????????????# ###############???????????? | | ???????????????????# ????? | | ???????????????????# ????? | | ???????????????????# ###################???????? | | ???????????????????# #???? % ##??????????????? | | ????????############ #?? #??????????????? | | ??????? # #???????????????? | | ??????? / #???????????????? | | ??????? # "" "" #???????????????? | | ????????########+## #?? ""S""?????????????????? | | ?????????????? ??# #????"""??????????????????? | | ???????????? "???# #?????? ??????????????????? | | ??????????? ?????# #?????????????????????????? | | ?????????? ???????# ############??????????????? | | ??????????????????# #??????????????? | | ??????????????????# ##########?????? | | ??????????????????# " # #?????? | | ??????????????????# "G" # #?????? | | ??????????????????# " " # #?????? | | ??????????????????# """ # #?????? | | ??????????????????# """ ! # #?????? | | ??????????????????# """ # #?????? | | ??????????????????# # #?????? | | ?# ?????????????# # #?????? | +----------------------------------------------------+ Best States ------------- Heat Dissipation 31 Energy Generation 10 Energy Capacity 250 Matter Stores 300 Matter Capacity 300 Sight Range 16 Terrain Scan Range 16 Terrain Scan Density 10 Evasion (%) 62 Item Schematics ----------------- None Robot Schematics ------------------ None Fabricated ------------ Nothing Alien Tech Used ----------------- None Achievements -------------- None Challenges ------------ None Game ------ Seed SpliceAccelerationCloak Manual? 0 Play Time 00:18:55 Cumulative 13.9 hours Start 2022.03.27 @ 12:46:27 End 2022.03.27 @ 13:09:18 Sessions 1 Manual Loads 0 Difficulty Rogue Special Mode None Game No. 38 Rogue 38 Adventurer 0 Explorer 0 Win Type - Total 0 Types 0/0/0/0/0/0/0/0/0 Lore% 17 Gallery% 23 Achievement% 19 Wizard Run 0 Options --------- ASCII 0 Keyboard 1 Movement Numpad Keybinds 0 Fullscreen 1 Font 14/SmallcapsGlow Map View 84x54 Tactical HUD 1 Map Filters NONE Filters NONE Steam 1 RUN: 8958481a-0bb1-44bf-b69b-db967914c54d